[Event "Fagernes Chess GM-Swiss 2025"]
[Site "Fagernes"]
[Date "2025.04.16"]
[Round "4.10"]
[White "Urazayev, Arystanbek"]
[Black "Melaa, Sondre"]
[Result "1-0"]
[Annotator "RC"]
[ECO "C84"]
[WhiteElo "2467"]
[BlackElo "2344"]
[PlyCount "75"]
[EventDate "2025.04.12"]
[EventCountry "NOR"]
[SourceTitle "playchess.com"]
[Source "ChessBase"]
[SourceQuality "1"]
[TimeControl "40/6000+30:2400+30"]

1. e4 {[%emt 0:06:46]} e5 {[%emt 0:00:16]} 2. Nf3 {[%emt 0:00:04]} Nc6 {[%emt 0:00:06]} 3. Bb5 {[%emt 0:00:05]} a6 {[%emt 0:00:16]} 4. Ba4 {[%emt 0:00:05]} Nf6 {[%emt 0:00:08]} 5. O-O {[%emt 0:00:08]} Be7 {[%emt 0:00:47]} 6. d3 {[%emt 0:01:50]} b5 {[%emt 0:00:24]} 7. Bb3 {[%emt 0:00:02]} d6 {[%emt 0:00:17]} 8. Bd2 {[%emt 0:07:31]} O-O {[%emt 0:02:26]} 9. h3 {[%emt 0:04:36]} h6 {[%emt 0:14:20]} 10. Re1 {[%emt 0:04:00]} Re8 {[%emt 0:09:32]} 11. a4 {[%emt 0:00:07]} Bb7 {[%emt 0:02:11]} 12. c4 {[%emt 0:02:18]} b4 {[%emt 0:10:00]} 13. a5 {[%emt 0:04:31]} Nd7 {[%emt 0:01:56]} 14. Ba4 {[%emt 0:01:44]} Rb8 {[%emt 0:00:44]} 15. Be3 {[%emt 0:00:57]} Bf6 {[%emt 0:02:29]} 16. Nbd2 {[%emt 0:01:02]} Nc5 {[%emt 0:03:18]} 17. Bxc5 {[%emt 0:05:52]} dxc5 {[%emt 0:00:07]} 18. Nb3 {[%emt 0:00:09]} Qd6 {[%emt 0:02:53]} 19. Nh2 {[%emt 0:05:19]} Red8 {[%emt 0:06:53]} 20. Ng4 {[%emt 0:05:33]} Bg5 {[%emt 0:00:30]} 21. Bxc6 {[%emt 0:03:26]} Bxc6 {[%emt 0:11:43]} 22. Ne3 {[%emt 0:08:29]} Qxd3 {[%emt 0:07:53]} 23. Qxd3 {[%emt 0:01:12]} Rxd3 {[%emt 0:01:17]} 24. Nxc5 {[%emt 0:00:11]} Rd2 {[%emt 0:01:20]} 25. Nxa6 {[%emt 0:03:17]} Rb7 {[%emt 0:00:46]} 26. Nc5 {[%emt 0:06:24]} Ra7 {[%emt 0:01:26]} 27. Nd5 {[%emt 0:00:18]} Bxd5 {[%emt 0:04:30]} 28. exd5 {[%emt 0:07:25]} Be7 {[%emt 0:02:46]} 29. Nb3 {[%emt 0:04:03]} Rxb2 {[%emt 0:00:26]} 30. Rab1 {[%emt 0:00:30]} Rxb1 {[%emt 0:00:30]} 31. Rxb1 {[%emt 0:00:00]} c6 {[%emt 0:03:21]} 32. dxc6 {[%emt 0:06:33]} Kf8 {[%emt 0:00:18]} 33. Rd1 {[%emt 0:02:51]} Rc7 {[%emt 0:06:37]} 34. a6 {[%emt 0:02:43]} Ke8 {[%emt 0:03:19]} 35. Rd7 {[%emt 0:04:22]} Rxc6 {[%emt 0:00:37]} 36. a7 {[%emt 0:00:30]} Ra6 {[%emt 0:00:30]} 37. Rb7 {[%emt 0:00:00]} Bd8 {[%emt 0:00:59]} 38. c5 {[%emt 0:00:41]} 1-0

[Event "Fagernes Chess GM-Swiss 2025"]
[Site "Fagernes"]
[Date "2025.04.16"]
[Round "4.11"]
[White "Grave, Jacob Templen"]
[Black "Hillarp Persson, Tiger"]
[Result "1/2-1/2"]
[Annotator "RC"]
[ECO "B51"]
[WhiteElo "2337"]
[BlackElo "2462"]
[PlyCount "123"]
[EventDate "2025.04.12"]
[EventCountry "NOR"]
[SourceTitle "playchess.com"]
[Source "ChessBase"]
[SourceQuality "1"]
[TimeControl "40/6000+30:2400+30"]

1. e4 {[%emt 0:02:24]} c5 {[%emt 0:02:13]} 2. Nf3 {[%emt 0:00:15]} d6 {[%emt 0:00:48]} 3. Bb5+ {[%emt 0:00:18]} Nd7 {[%emt 0:00:10]} 4. Ba4 {[%emt 0:07:16]} Ngf6 {[%emt 0:04:17]} 5. O-O {[%emt 0:00:10]} g6 {[%emt 0:10:18]} 6. Re1 {[%emt 0:05:07]} Bg7 {[%emt 0:02:24]} 7. c3 {[%emt 0:02:25]} a6 {[%emt 0:15:06]} 8. d4 {[%emt 0:00:36]} b5 {[%emt 0:06:43]} 9. Bc2 {[%emt 0:02:09]} cxd4 {[%emt 0:00:07]} 10. cxd4 {[%emt 0:00:41]} Nb6 {[%emt 0:00:07]} 11. b3 {[%emt 0:14:42]} O-O {[%emt 0:06:49]} 12. Bd2 {[%emt 0:14:08]} Bg4 {[%emt 0:20:42]} 13. h3 {[%emt 0:17:52]} Bxf3 {[%emt 0:00:27]} 14. Qxf3 {[%emt 0:00:03]} Rc8 {[%emt 0:08:20]} 15. Bd3 {[%emt 0:01:59]} e5 {[%emt 0:01:57]} 16. a4 {[%emt 0:04:27]} d5 {[%emt 0:14:02]} 17. axb5 {[%emt 0:07:33]} axb5 {[%emt 0:01:55]} 18. dxe5 {[%emt 0:04:18]} Nfd7 {[%emt 0:00:18]} 19. Bf4 {[%emt 0:00:51]} Nxe5 {[%emt 0:04:22]} 20. Bxe5 {[%emt 0:00:10]} Bxe5 {[%emt 0:00:05]} 21. Ra5 {[%emt 0:01:45]} b4 {[%emt 0:01:41]} 22. exd5 {[%emt 0:01:05]} Re8 {[%emt 0:00:17]} 23. Ra7 {[%emt 0:07:04]} Qxd5 {[%emt 0:00:47]} 24. Qxd5 {[%emt 0:01:08]} Nxd5 {[%emt 0:00:08]} 25. Bc4 {[%emt 0:01:41]} Bb8 {[%emt 0:02:33]} 26. Rxe8+ {[%emt 0:03:12]} Rxe8 {[%emt 0:00:07]} 27. Rb7 {[%emt 0:00:20]} Re1+ {[%emt 0:00:18]} 28. Bf1 {[%emt 0:00:03]} Bf4 {[%emt 0:01:44]} 29. g3 {[%emt 0:09:01]} Rxb1 {[%emt 0:05:09]} 30. gxf4 {[%emt 0:00:15]} f5 {[%emt 0:00:45]} 31. Rb5 {[%emt 0:00:29]} Nxf4 {[%emt 0:00:39]} 32. Rxb4 {[%emt 0:00:34]} Nxh3+ {[%emt 0:00:19]} 33. Kg2 {[%emt 0:00:04]} Ng5 {[%emt 0:00:07]} 34. Rb7 {[%emt 0:02:19]} Ne4 {[%emt 0:00:34]} 35. Bd3 {[%emt 0:00:41]} Rb2 {[%emt 0:00:33]} 36. Bxe4 {[%emt 0:00:06]} fxe4 {[%emt 0:00:09]} 37. Kg3 {[%emt 0:00:34]} h5 {[%emt 0:01:17]} 38. Rb4 {[%emt 0:01:01]} e3 {[%emt 0:00:38]} 39. fxe3 {[%emt 0:00:41]} Kg7 {[%emt 0:00:16]} 40. Rb7+ {[%emt 0:00:30]} Kf6 {[%emt 0:00:41]} 41. Rb6+ {[%emt 0:10:51]} Kg5 {[%emt 0:01:54]} 42. Rb5+ {[%emt 0:00:58]} Kh6 {[%emt 0:00:16]} 43. Rb8 {[%emt 0:06:17]} Rb1 {[%emt 0:03:08]} 44. b4 {[%emt 0:03:47]} Rg1+ {[%emt 0:05:30]} 45. Kf2 {[%emt 0:01:23]} Rb1 {[%emt 0:05:54]} 46. Kg3 {[%emt 0:01:16]} Kg5 {[%emt 0:08:56]} 47. Rb5+ {[%emt 0:03:25]} Kf6 {[%emt 0:00:14]} 48. Rb6+ {[%emt 0:00:53]} Kf5 {[%emt 0:00:32]} 49. Rb5+ {[%emt 0:00:38]} Ke4 {[%emt 0:01:08]} 50. Kg2 {[%emt 0:06:37]} Rd1 {[%emt 0:01:56]} 51. Rg5 {[%emt 0:01:11]} Rd6 {[%emt 0:00:08]} 52. Kf2 {[%emt 0:03:46]} Kd3 {[%emt 0:00:26]} 53. Re5 {[%emt 0:01:08]} Rf6+ {[%emt 0:04:17]} 54. Kg3 {[%emt 0:00:27]} Ke2 {[%emt 0:00:10]} 55. b5 {[%emt 0:00:42]} Rf1 {[%emt 0:01:58]} 56. Kg2 {[%emt 0:00:37]} Rf2+ {[%emt 0:01:40]} 57. Kg3 {[%emt 0:01:04]} Kf1 {[%emt 0:04:36]} 58. Rc5 {[%emt 0:00:46]} Rg2+ {[%emt 0:00:26]} 59. Kf3 {[%emt 0:01:02]} Rf2+ {[%emt 0:00:41]} 60. Kg3 {[%emt 0:00:43]} Rg2+ {[%emt 0:01:33]} 61. Kf3 {[%emt 0:00:04]} Rf2+ {[%emt 0:00:19]} 62. Kg3 {[%emt 0:01:43]} 1/2-1/2

[Event "Fagernes Chess GM-Swiss 2025"]
[Site "Fagernes"]
[Date "2025.04.16"]
[Round "4.12"]
[White "Fiskaaen, Martin Holten"]
[Black "Csonka, Balazs"]
[Result "0-1"]
[Annotator "RC"]
[ECO "E04"]
[WhiteElo "2283"]
[BlackElo "2459"]
[PlyCount "96"]
[EventDate "2025.04.12"]
[EventCountry "NOR"]
[SourceTitle "playchess.com"]
[Source "ChessBase"]
[SourceQuality "1"]
[TimeControl "40/6000+30:2400+30"]

1. d4 {[%emt 0:00:17]} Nf6 {[%emt 0:00:07]} 2. c4 {[%emt 0:00:21]} e6 {[%emt 0:00:06]} 3. Nf3 {[%emt 0:00:13]} d5 {[%emt 0:00:08]} 4. g3 {[%emt 0:00:15]} dxc4 {[%emt 0:00:08]} 5. Bg2 {[%emt 0:00:06]} c6 {[%emt 0:00:10]} 6. O-O {[%emt 0:01:36]} b5 {[%emt 0:00:43]} 7. b3 {[%emt 0:00:58]} cxb3 {[%emt 0:00:24]} 8. Qxb3 {[%emt 0:00:06]} Bb7 {[%emt 0:01:34]} 9. Rd1 {[%emt 0:06:07]} Be7 {[%emt 0:06:04]} 10. Nc3 {[%emt 0:01:12]} O-O {[%emt 0:00:53]} 11. Ne5 {[%emt 0:05:37]} b4 {[%emt 0:07:11]} 12. Na4 {[%emt 0:10:37]} Ba6 {[%emt 0:04:19]} 13. e3 {[%emt 0:12:58]} Bb5 {[%emt 0:16:15]} 14. Bd2 {[%emt 0:04:18]} a5 {[%emt 0:02:28]} 15. Rac1 {[%emt 0:04:40]} Ra7 {[%emt 0:11:17]} 16. Nxc6 {[%emt 0:03:36]} Nxc6 {[%emt 0:10:29]} 17. Bxc6 {[%emt 0:05:11]} Bxc6 {[%emt 0:00:30]} 18. Rxc6 {[%emt 0:00:30]} Ne4 {[%emt 0:04:08]} 19. Qc2 {[%emt 0:28:30]} Qd5 {[%emt 0:08:10]} 20. Nb6 {[%emt 0:03:05]} Qh5 {[%emt 0:03:11]} 21. Rc1 {[%emt 0:09:07]} Qf3 {[%emt 0:04:18]} 22. Be1 {[%emt 0:03:33]} Nc3 {[%emt 0:01:06]} 23. Rxc3 {[%emt 0:00:54]} bxc3 {[%emt 0:00:07]} 24. Bxc3 {[%emt 0:02:20]} Rc7 {[%emt 0:11:52]} 25. Qb2 {[%emt 0:04:59]} h5 {[%emt 0:05:49]} 26. Bxa5 {[%emt 0:01:31]} Rxc1+ {[%emt 0:00:51]} 27. Qxc1 {[%emt 0:00:00]} h4 {[%emt 0:00:36]} 28. gxh4 {[%emt 0:01:19]} Bxh4 {[%emt 0:03:47]} 29. Be1 {[%emt 0:00:05]} Qb7 {[%emt 0:02:45]} 30. Na4 {[%emt 0:00:34]} Rb8 {[%emt 0:01:12]} 31. Nc3 {[%emt 0:00:40]} Ra8 {[%emt 0:01:12]} 32. Qc2 {[%emt 0:00:40]} Ra5 {[%emt 0:01:26]} 33. Ne4 {[%emt 0:00:28]} Rb5 {[%emt 0:00:56]} 34. Nc5 {[%emt 0:00:35]} Qb8 {[%emt 0:00:56]} 35. Bc3 {[%emt 0:00:30]} Be7 {[%emt 0:00:56]} 36. Ne4 {[%emt 0:00:31]} Qb7 {[%emt 0:00:55]} 37. f3 {[%emt 0:00:28]} Rb1+ {[%emt 0:01:11]} 38. Kg2 {[%emt 0:00:00]} Qb5 {[%emt 0:00:28]} 39. Ng3 {[%emt 0:00:48]} Ba3 {[%emt 0:00:33]} 40. Qe2 {[%emt 0:00:41]} Qc6 {[%emt 0:00:45]} 41. Qd3 {[%emt 0:04:19]} Rb8 {[%emt 0:05:47]} 42. Ne2 {[%emt 0:06:23]} Bd6 {[%emt 0:03:26]} 43. e4 {[%emt 0:08:39]} Ra8 {[%emt 0:09:06]} 44. e5 {[%emt 0:05:29]} Be7 {[%emt 0:01:28]} 45. Qe4 {[%emt 0:01:24]} Qc8 {[%emt 0:05:51]} 46. d5 {[%emt 0:03:24]} Rxa2 {[%emt 0:01:56]} 47. d6 {[%emt 0:01:32]} Bxd6 {[%emt 0:01:39]} 48. exd6 {[%emt 0:02:17]} Qxc3 {[%emt 0:00:06]} 0-1

[Event "Fagernes Chess GM-Swiss 2025"]
[Site "Fagernes"]
[Date "2025.04.16"]
[Round "4.13"]
[White "Dotzer, Lukas"]
[Black "Adharsh K"]
[Result "1-0"]
[Annotator "RC"]
[ECO "B62"]
[WhiteElo "2453"]
[BlackElo "2317"]
[PlyCount "127"]
[EventDate "2025.04.12"]
[EventCountry "NOR"]
[SourceTitle "playchess.com"]
[Source "ChessBase"]
[SourceQuality "1"]
[TimeControl "40/6000+30:2400+30"]

1. e4 {[%emt 0:00:02]} c5 {[%emt 0:05:42]} 2. Nc3 {[%emt 0:00:02]} Nc6 {[%emt 0:00:10]} 3. Nf3 {[%emt 0:00:06]} d6 {[%emt 0:03:24]} 4. d4 {[%emt 0:00:06]} cxd4 {[%emt 0:00:12]} 5. Nxd4 {[%emt 0:00:05]} Nf6 {[%emt 0:00:06]} 6. Bg5 {[%emt 0:00:10]} e6 {[%emt 0:00:06]} 7. Qd3 {[%emt 0:00:07]} Bd7 {[%emt 0:00:36]} 8. O-O-O {[%emt 0:00:09]} a6 {[%emt 0:01:05]} 9. f4 {[%emt 0:00:07]} Qa5 {[%emt 0:00:44]} 10. Nxc6 {[%emt 0:09:56]} Bxc6 {[%emt 0:03:07]} 11. Bxf6 {[%emt 0:11:08]} gxf6 {[%emt 0:00:08]} 12. f5 {[%emt 0:05:58]} O-O-O {[%emt 0:10:02]} 13. Qh3 {[%emt 0:11:12]} Qe5 {[%emt 0:00:29]} 14. Bc4 {[%emt 0:03:28]} Bd7 {[%emt 0:00:32]} 15. Qh5 {[%emt 0:12:24]} Be8 {[%emt 0:01:48]} 16. Qh3 {[%emt 0:03:42]} Bd7 {[%emt 0:00:55]} 17. Qh5 {[%emt 0:00:04]} d5 {[%emt 0:03:29]} 18. Bb3 {[%emt 0:09:49]} d4 {[%emt 0:14:13]} 19. Ne2 {[%emt 0:10:55]} exf5 {[%emt 0:07:22]} 20. exf5 {[%emt 0:01:43]} Bc5 {[%emt 0:02:59]} 21. Ng3 {[%emt 0:05:51]} Rhe8 {[%emt 0:09:55]} 22. Bxf7 {[%emt 0:04:27]} Re7 {[%emt 0:00:06]} 23. Be6 {[%emt 0:05:14]} Bxe6 {[%emt 0:00:52]} 24. fxe6 {[%emt 0:00:10]} Qxh5 {[%emt 0:00:04]} 25. Nxh5 {[%emt 0:00:12]} Rxe6 {[%emt 0:00:07]} 26. Rde1 {[%emt 0:02:17]} Rc6 {[%emt 0:03:14]} 27. Nf4 {[%emt 0:01:44]} Bf8 {[%emt 0:07:54]} 28. Kd1 {[%emt 0:03:01]} Bh6 {[%emt 0:00:07]} 29. Rhf1 {[%emt 0:02:14]} Rb6 {[%emt 0:04:49]} 30. b3 {[%emt 0:05:19]} Rbd6 {[%emt 0:01:13]} 31. Re7 {[%emt 0:01:51]} R8d7 {[%emt 0:00:07]} 32. Re8+ {[%emt 0:01:57]} Rd8 {[%emt 0:00:07]} 33. Re7 {[%emt 0:00:45]} R8d7 {[%emt 0:00:05]} 34. Re8+ {[%emt 0:00:21]} Rd8 {[%emt 0:00:09]} 35. Re4 {[%emt 0:00:05]} R8d7 {[%emt 0:01:47]} 36. Ne6 {[%emt 0:01:06]} d3 {[%emt 0:01:07]} 37. c4 {[%emt 0:00:34]} Rf7 {[%emt 0:01:47]} 38. Nd4 {[%emt 0:00:31]} Rd8 {[%emt 0:00:27]} 39. Nf5 {[%emt 0:00:23]} Bf8 {[%emt 0:00:05]} 40. Ne3 {[%emt 0:00:39]} b5 {[%emt 0:04:30]} 41. cxb5 {[%emt 0:17:38]} axb5 {[%emt 0:00:05]} 42. Rf5 {[%emt 0:00:35]} Rb7 {[%emt 0:16:06]} 43. Rd5 {[%emt 0:05:00]} Rxd5 {[%emt 0:01:39]} 44. Nxd5 {[%emt 0:00:07]} Kd7 {[%emt 0:03:25]} 45. Kd2 {[%emt 0:09:07]} f5 {[%emt 0:02:39]} 46. Rd4 {[%emt 0:03:55]} Kc6 {[%emt 0:00:52]} 47. Nb4+ {[%emt 0:04:02]} Bxb4+ {[%emt 0:06:58]} 48. Rxb4 {[%emt 0:00:07]} Rd7 {[%emt 0:00:39]} 49. Rf4 {[%emt 0:01:56]} Rd5 {[%emt 0:00:23]} 50. a3 {[%emt 0:01:11]} Kd6 {[%emt 0:02:48]} 51. Rh4 {[%emt 0:01:18]} Ke5 {[%emt 0:01:39]} 52. Rxh7 {[%emt 0:00:12]} Rd8 {[%emt 0:01:39]} 53. Rb7 {[%emt 0:00:39]} Rd5 {[%emt 0:00:25]} 54. Re7+ {[%emt 0:00:44]} Kf6 {[%emt 0:00:28]} 55. Re3 {[%emt 0:00:25]} Rd8 {[%emt 0:00:05]} 56. Rxd3 {[%emt 0:00:23]} Ra8 {[%emt 0:00:04]} 57. b4 {[%emt 0:00:11]} Ke5 {[%emt 0:00:04]} 58. Ke3 {[%emt 0:00:38]} Rc8 {[%emt 0:00:03]} 59. g3 {[%emt 0:01:03]} Rc2 {[%emt 0:00:04]} 60. h4 {[%emt 0:00:10]} Kf6 {[%emt 0:00:23]} 61. Kd4 {[%emt 0:00:51]} Ke6 {[%emt 0:00:13]} 62. Rc3 {[%emt 0:00:14]} Rd2+ {[%emt 0:00:04]} 63. Kc5 {[%emt 0:00:15]} Rd5+ {[%emt 0:00:25]} 64. Kb6 {[%emt 0:00:20]} 1-0

[Event "Fagernes Chess GM-Swiss 2025"]
[Site "Fagernes"]
[Date "2025.04.16"]
[Round "4.14"]
[White "Blomqvist, Erik"]
[Black "Eliseev, Sergey"]
[Result "0-1"]
[Annotator "RC"]
[ECO "B23"]
[WhiteElo "2475"]
[BlackElo "2226"]
[PlyCount "50"]
[EventDate "2025.04.12"]
[EventCountry "NOR"]
[SourceTitle "playchess.com"]
[Source "ChessBase"]
[SourceQuality "1"]
[TimeControl "40/6000+30:2400+30"]

1. e4 {[%emt 0:00:56]} c5 {[%emt 0:05:26]} 2. Nc3 {[%emt 0:00:09]} a6 {[%emt 0:00:17]} 3. d4 {[%emt 0:00:21]} cxd4 {[%emt 0:00:57]} 4. Qxd4 {[%emt 0:00:05]} e6 {[%emt 0:04:57]} 5. Bf4 {[%emt 0:01:06]} Nc6 {[%emt 0:01:26]} 6. Qe3 {[%emt 0:00:18]} e5 {[%emt 0:03:36]} 7. Bg3 {[%emt 0:05:45]} Nf6 {[%emt 0:13:55]} 8. O-O-O {[%emt 0:01:05]} d6 {[%emt 0:04:12]} 9. f4 {[%emt 0:04:06]} Qa5 {[%emt 0:06:18]} 10. Bc4 {[%emt 0:06:35]} Be6 {[%emt 0:04:22]} 11. Nd5 {[%emt 0:04:18]} Ng4 {[%emt 0:06:47]} 12. Qb3 {[%emt 0:28:04]} b5 {[%emt 0:04:31]} 13. f5 {[%emt 0:21:29]} bxc4 {[%emt 0:11:52]} 14. Qb7 {[%emt 0:00:09]} Bxd5 {[%emt 0:00:29]} 15. Qxa8+ {[%emt 0:18:42]} Nd8 {[%emt 0:00:41]} 16. Rxd5 {[%emt 0:08:16]} Qxa2 {[%emt 0:01:12]} 17. Kd2 {[%emt 0:00:35]} Be7 {[%emt 0:16:35]} 18. Nf3 {[%emt 0:02:48]} Nf6 {[%emt 0:01:02]} 19. Re1 {[%emt 0:03:48]} O-O {[%emt 0:02:18]} 20. Rb5 {[%emt 0:01:14]} Nc6 {[%emt 0:06:22]} 21. Qxc6 {[%emt 0:00:05]} axb5 {[%emt 0:00:02]} 22. Qxb5 {[%emt 0:00:11]} Bd8 {[%emt 0:00:08]} 23. Bh4 {[%emt 0:00:52]} Ba5+ {[%emt 0:00:48]} 24. c3 {[%emt 0:01:00]} Bc7 {[%emt 0:00:01]} 25. Bxf6 {[%emt 0:00:21]} Rb8 {[%emt 0:00:15]} 0-1

[Event "Fagernes Chess GM-Swiss 2025"]
[Site "Fagernes"]
[Date "2025.04.16"]
[Round "4.15"]
[White "Andersen, Morten"]
[Black "Bazakutsa, Svyatoslav"]
[Result "0-1"]
[Annotator "RC"]
[ECO "E61"]
[WhiteElo "2200"]
[BlackElo "2474"]
[PlyCount "68"]
[EventDate "2025.04.12"]
[EventCountry "NOR"]
[SourceTitle "playchess.com"]
[Source "ChessBase"]
[SourceQuality "1"]
[TimeControl "40/6000+30:2400+30"]

1. Nf3 {[%emt 0:00:42]} Nf6 {[%emt 0:00:43]} 2. c4 {[%emt 0:03:26]} g6 {[%emt 0:00:10]} 3. d4 {[%emt 0:00:36]} Bg7 {[%emt 0:00:08]} 4. e3 {[%emt 0:00:08]} O-O {[%emt 0:00:31]} 5. Be2 {[%emt 0:00:11]} d6 {[%emt 0:01:31]} 6. O-O {[%emt 0:04:08]} Nbd7 {[%emt 0:00:33]} 7. Nc3 {[%emt 0:06:13]} e5 {[%emt 0:02:03]} 8. b4 {[%emt 0:05:06]} Re8 {[%emt 0:05:54]} 9. Bb2 {[%emt 0:03:37]} e4 {[%emt 0:08:48]} 10. Ne1 {[%emt 0:05:09]} Nf8 {[%emt 0:01:50]} 11. d5 {[%emt 0:08:43]} h5 {[%emt 0:01:49]} 12. Nc2 {[%emt 0:07:18]} N8h7 {[%emt 0:02:23]} 13. f4 {[%emt 0:06:12]} exf3 {[%emt 0:04:40]} 14. Bxf3 {[%emt 0:04:03]} a5 {[%emt 0:11:00]} 15. bxa5 {[%emt 0:04:40]} Nd7 {[%emt 0:08:11]} 16. Na4 {[%emt 0:06:12]} Ne5 {[%emt 0:02:40]} 17. Bd4 {[%emt 0:02:05]} Rxa5 {[%emt 0:04:59]} 18. Nb2 {[%emt 0:01:26]} Ng5 {[%emt 0:03:30]} 19. Kh1 {[%emt 0:03:18]} Bf5 {[%emt 0:08:46]} 20. Ne1 {[%emt 0:02:08]} Qd7 {[%emt 0:04:57]} 21. a4 {[%emt 0:02:31]} Raa8 {[%emt 0:02:13]} 22. a5 {[%emt 0:02:10]} h4 {[%emt 0:00:45]} 23. Qa4 {[%emt 0:03:44]} Qc8 {[%emt 0:02:55]} 24. Qb4 {[%emt 0:02:41]} h3 {[%emt 0:02:05]} 25. c5 {[%emt 0:02:23]} hxg2+ {[%emt 0:04:55]} 26. Bxg2 {[%emt 0:00:17]} Be4 {[%emt 0:01:15]} 27. Nd1 {[%emt 0:04:01]} dxc5 {[%emt 0:05:48]} 28. Qxc5 {[%emt 0:01:00]} Nd3 {[%emt 0:03:07]} 29. Qc3 {[%emt 0:04:09]} Bxd4 {[%emt 0:01:47]} 30. Qxd4 {[%emt 0:05:00]} Nxe1 {[%emt 0:01:17]} 31. Bxe4 {[%emt 0:03:55]} Rxe4 {[%emt 0:00:10]} 32. Qf6 {[%emt 0:00:55]} Qh3 {[%emt 0:01:21]} 33. Rxe1 {[%emt 0:03:08]} Nf3 {[%emt 0:00:19]} 34. Ra2 {[%emt 0:00:21]} Rh4 {[%emt 0:00:52]} 0-1

[Event "Fagernes Chess GM-Swiss 2025"]
[Site "Fagernes"]
[Date "2025.04.16"]
[Round "4.16"]
[White "Kaasen, Tor Fredrik"]
[Black "Southcott-Moyers, Indy"]
[Result "1-0"]
[Annotator "RC"]
[ECO "C50"]
[WhiteElo "2472"]
[BlackElo "2227"]
[PlyCount "129"]
[EventDate "2025.04.12"]
[EventCountry "NOR"]
[SourceTitle "playchess.com"]
[Source "ChessBase"]
[SourceQuality "1"]
[TimeControl "40/6000+30:2400+30"]

1. e4 {[%emt 0:00:03]} e5 {[%emt 0:00:05]} 2. Nf3 {[%emt 0:00:51]} Nc6 {[%emt 0:00:04]} 3. Bc4 {[%emt 0:00:31]} Bc5 {[%emt 0:00:06]} 4. d3 {[%emt 0:00:29]} Nf6 {[%emt 0:01:03]} 5. Nc3 {[%emt 0:00:10]} d6 {[%emt 0:05:38]} 6. Na4 {[%emt 0:00:31]} Bb6 {[%emt 0:00:38]} 7. a3 {[%emt 0:00:24]} O-O {[%emt 0:03:43]} 8. O-O {[%emt 0:01:07]} Be6 {[%emt 0:02:05]} 9. Bxe6 {[%emt 0:00:27]} fxe6 {[%emt 0:00:06]} 10. b4 {[%emt 0:00:08]} Nd4 {[%emt 0:05:18]} 11. Ne1 {[%emt 0:06:11]} Qd7 {[%emt 0:16:09]} 12. Nxb6 {[%emt 0:03:26]} axb6 {[%emt 0:00:23]} 13. c3 {[%emt 0:00:34]} Nc6 {[%emt 0:00:20]} 14. Nf3 {[%emt 0:00:51]} Ne7 {[%emt 0:10:15]} 15. Re1 {[%emt 0:04:57]} Ng6 {[%emt 0:00:29]} 16. c4 {[%emt 0:08:19]} c5 {[%emt 0:09:12]} 17. Rb1 {[%emt 0:01:28]} Ne7 {[%emt 0:02:33]} 18. Re2 {[%emt 0:11:10]} Nc6 {[%emt 0:04:02]} 19. Rb3 {[%emt 0:07:20]} h6 {[%emt 0:08:47]} 20. Reb2 {[%emt 0:02:57]} Ra7 {[%emt 0:00:24]} 21. h3 {[%emt 0:01:14]} Kh7 {[%emt 0:09:06]} 22. Be3 {[%emt 0:01:32]} Rfa8 {[%emt 0:04:28]} 23. bxc5 {[%emt 0:03:10]} bxc5 {[%emt 0:00:43]} 24. Kh2 {[%emt 0:01:20]} Nd8 {[%emt 0:02:03]} 25. Ra2 {[%emt 0:05:00]} Qc7 {[%emt 0:01:20]} 26. Qb1 {[%emt 0:02:03]} Nd7 {[%emt 0:02:22]} 27. Ng1 {[%emt 0:02:23]} Nc6 {[%emt 0:00:54]} 28. Ne2 {[%emt 0:01:18]} Nd4 {[%emt 0:01:15]} 29. Nxd4 {[%emt 0:08:04]} cxd4 {[%emt 0:03:17]} 30. Bc1 {[%emt 0:01:14]} Nc5 {[%emt 0:00:15]} 31. Rb5 {[%emt 0:00:57]} Qf7 {[%emt 0:03:21]} 32. Qc2 {[%emt 0:03:31]} Ra6 {[%emt 0:02:28]} 33. Kg1 {[%emt 0:01:41]} Kh8 {[%emt 0:01:15]} 34. Ra1 {[%emt 0:05:34]} Kh7 {[%emt 0:02:03]} 35. Rab1 {[%emt 0:01:30]} Qh5 {[%emt 0:01:43]} 36. Bb2 {[%emt 0:03:51]} Rf8 {[%emt 0:01:33]} 37. Rf1 {[%emt 0:04:02]} Raa8 {[%emt 0:03:31]} 38. a4 {[%emt 0:00:57]} Qg6 {[%emt 0:01:20]} 39. Ba3 {[%emt 0:01:52]} Rf3 {[%emt 0:04:37]} 40. Bxc5 {[%emt 0:02:02]} dxc5 {[%emt 0:00:18]} 41. Kh2 {[%emt 0:42:49]} Rf6 {[%emt 0:04:10]} 42. Rxc5 {[%emt 0:00:00]} Qg5 {[%emt 0:00:21]} 43. a5 {[%emt 0:00:00]} Rg6 {[%emt 0:02:17]} 44. g3 {[%emt 0:00:00]} Rf8 {[%emt 0:01:43]} 45. Qe2 {[%emt 0:00:00]} Rf4 {[%emt 0:06:57]} 46. Rb5 {[%emt 0:00:00]} Rf7 {[%emt 0:02:26]} 47. Kg2 {[%emt 0:00:00]} Kg8 {[%emt 0:03:16]} 48. Kh2 {[%emt 0:00:00]} Kh7 {[%emt 0:01:07]} 49. Rb2 {[%emt 0:00:00]} Qd8 {[%emt 0:00:58]} 50. Rb6 {[%emt 0:03:21]} Rgf6 {[%emt 0:00:48]} 51. Kg2 {[%emt 0:00:22]} Qf8 {[%emt 0:00:12]} 52. f3 {[%emt 0:01:28]} Qa3 {[%emt 0:02:38]} 53. Rb5 {[%emt 0:00:18]} Qd6 {[%emt 0:00:05]} 54. Qb2 {[%emt 0:02:00]} Qc7 {[%emt 0:00:08]} 55. Qb4 {[%emt 0:00:45]} Rg6 {[%emt 0:01:32]} 56. g4 {[%emt 0:04:04]} Qd8 {[%emt 0:02:54]} 57. Rxe5 {[%emt 0:01:33]} Qf6 {[%emt 0:02:36]} 58. f4 {[%emt 0:00:48]} Qh4 {[%emt 0:01:22]} 59. Qe1 {[%emt 0:00:45]} Qd8 {[%emt 0:00:35]} 60. f5 {[%emt 0:00:43]} exf5 {[%emt 0:00:20]} 61. exf5 {[%emt 0:00:16]} Ra6 {[%emt 0:00:21]} 62. Qe4 {[%emt 0:02:35]} Rxa5 {[%emt 0:00:09]} 63. f6+ {[%emt 0:00:35]} g6 {[%emt 0:00:05]} 64. Re7 {[%emt 0:00:24]} Ra2+ {[%emt 0:00:44]} 65. Kg1 {[%emt 0:00:42]} 1-0